fUSD/lending_fUSD_20260524
["ID","MTS","AMOUNT","RATE_DAILY","PERIOD"]
[422881518,1779565841000,-151.0,0.00021404,2]
[422881506,1779565841000,-152.0,0.00021349,2]
[422881509,1779565841000,-500.0,0.00021349,2]
[422881513,1779565841000,-152.0,0.00021349,2]
[422881511,1779565841000,-151.0,0.00021349,2]
[422881512,1779565841000,-500.0,0.00021349,2]
[422881514,1779565841000,-151.0,0.00021349,2]
[422881516,1779565841000,-151.0,0.00021349,2]
[422881510,1779565841000,-152.0,0.00021349,2]
[422881508,1779565841000,-151.0,0.00021349,2]
[422881515,1779565841000,-152.0,0.00021349,2]
[422881519,1779565841000,-151.0,0.00021459,2]
[422881521,1779565841000,-151.0,0.00021569,2]
[422881522,1779565841000,-151.0,0.00021624,2]
[422881523,1779565841000,-151.0,0.00021679,2]
[422881525,1779565841000,-266.32626379,0.00021734,2]
[422881524,1779565841000,-2000.0,0.00021726,2]
[422881528,1779565841000,-181.08010149,0.00021897,2]
[422881526,1779565841000,-504.0,0.00021742,5]
[422881527,1779565841000,-323.74929475,0.00021897,2]
[422881520,1779565841000,-151.0,0.00021514,2]
[422881461,1779565841000,-151.0,0.00021349,2]
[422881494,1779565841000,-151.0,0.00021349,2]
[422881497,1779565841000,-152.0,0.00021349,2]
[422881529,1779565841000,-771.01748644,0.00021897,2]
[422881504,1779565841000,-151.0,0.00021349,2]
[422881495,1779565841000,-500.0,0.00021349,2]
[422881470,1779565841000,-646.65982734,0.00021349,2]
[422881468,1779565841000,-500.0,0.00021349,2]
[422881478,1779565841000,-151.0,0.00021349,2]
[422881472,1779565841000,-500.0,0.00021349,2]
[422881471,1779565841000,-151.0,0.00021349,2]
[422881467,1779565841000,-152.0,0.00021349,2]
[422881477,1779565841000,-152.0,0.00021349,2]
[422881475,1779565841000,-151.0,0.00021349,2]
[422881474,1779565841000,-151.0,0.00021349,2]
[422881473,1779565841000,-152.0,0.00021349,2]
[422881476,1779565841000,-500.0,0.00021349,2]
[422881480,1779565841000,-500.0,0.00021349,2]
[422881490,1779565841000,-151.0,0.00021349,2]
[422881491,1779565841000,-151.0,0.00021349,2]
[422881469,1779565841000,-151.0,0.00021349,2]
[422881481,1779565841000,-152.0,0.00021349,2]
[422881479,1779565841000,-151.0,0.00021349,2]
[422881503,1779565841000,-151.0,0.00021349,2]
[422881493,1779565841000,-152.0,0.00021349,2]
[422881496,1779565841000,-151.0,0.00021349,2]
[422881492,1779565841000,-500.0,0.00021349,2]
[422881485,1779565841000,-152.0,0.00021349,2]
[422881505,1779565841000,-500.0,0.00021349,2]
[422881487,1779565841000,-151.0,0.00021349,2]
[422881488,1779565841000,-500.0,0.00021349,2]
[422881484,1779565841000,-500.0,0.00021349,2]
[422881486,1779565841000,-151.0,0.00021349,2]
[422881483,1779565841000,-151.0,0.00021349,2]
[422881482,1779565841000,-151.0,0.00021349,2]
[422881489,1779565841000,-152.0,0.00021349,2]
[422881573,1779565842000,-200.0,0.00022993,2]
[422881568,1779565842000,-487.0,0.00022754,2]
[422881567,1779565842000,-487.0,0.00022754,2]
[422881566,1779565842000,-514.0,0.00022754,5]
[422881563,1779565842000,-1377.42282658,0.00022445,2]
[422881570,1779565842000,-165.59967159,0.000229,2]
[422881569,1779565842000,-893.04,0.00022754,2]
[422881562,1779565842000,-200.0,0.00022445,2]
[422881564,1779565842000,-2005.9555727,0.00022445,2]
[422881560,1779565842000,-510.85497257,0.00022445,2]
[422881575,1779565842000,-2080.17592889,0.00022993,2]
[422881565,1779565842000,-152.2,0.0002272,2]
[422881572,1779565842000,-200.0,0.00022993,2]
[422881578,1779565842000,-158.0,0.00023,2]
[422881581,1779565842000,-2370.0,0.00023,2]
[422881577,1779565842000,-1416.0,0.00023,2]
[422881576,1779565842000,-393.0,0.00023,2]
[422881574,1779565842000,-1428.38747117,0.00022993,2]
[422881580,1779565842000,-2112.0,0.00023,2]
[422881582,1779565842000,-494.0,0.00023,2]
[422881583,1779565842000,-223.52761072,0.000232,2]
[422881587,1779565842000,-1271.0,0.00023485,2]
[422881585,1779565842000,-625.0,0.00023485,2]
[422881588,1779565842000,-418.0,0.00023485,2]
[422881586,1779565842000,-927.0,0.00023485,2]
[422881591,1779565842000,-150.0,0.00023495,2]
[422881584,1779565842000,-3546.0,0.00023485,2]
[422881571,1779565842000,-194.72792766,0.00022993,2]
[422881579,1779565842000,-307.0,0.00023,2]
[422881561,1779565842000,-200.0,0.00022445,2]
[422881542,1779565842000,-900.0,0.00021918,2]
[422881553,1779565842000,-450.0,0.00022,2]
[422881530,1779565842000,-200.0,0.00021897,2]
[422881531,1779565842000,-200.0,0.00021897,2]
[422881533,1779565842000,-323.74929476,0.00021897,2]
[422881532,1779565842000,-1328.27659266,0.00021897,2]
[422881543,1779565842000,-900.0,0.00021918,2]
[422881535,1779565842000,-500.0,0.000219,2]
[422881534,1779565842000,-1934.38338736,0.00021897,2]
[422881544,1779565842000,-900.0,0.00021918,2]
[422881545,1779565842000,-900.0,0.00021918,2]
[422881541,1779565842000,-900.0,0.00021918,2]
[422881537,1779565842000,-508.0,0.00021917,5]
[422881539,1779565842000,-261.01,0.00021918,2]
[422881538,1779565842000,-5000.0,0.00021918,2]
[422881554,1779565842000,-2370.0,0.00022,2]
[422881540,1779565842000,-900.0,0.00021918,2]
[422881546,1779565842000,-900.0,0.00021918,2]
[422881590,1779565842000,-150.0,0.00023495,2]
[422881549,1779565842000,-1416.0,0.00022,2]
[422881547,1779565842000,-900.0,0.00021918,2]
[422881548,1779565842000,-393.0,0.00022,2]
[422881558,1779565842000,-238.21403417,0.00022407,2]
[422881555,1779565842000,-494.0,0.00022,2]
[422881556,1779565842000,-164.0,0.00022,2]
[422881557,1779565842000,-2749.5,0.00022353,2]
[422881551,1779565842000,-307.0,0.00022,2]
[422881550,1779565842000,-158.0,0.00022,2]
[422881559,1779565842000,-187.78006524,0.00022445,2]
[422881552,1779565842000,-2112.0,0.00022,2]
[422881536,1779565842000,-310.79408857,0.00021911,7]
[422881592,1779565842000,-201.93286098,0.00023541,2]
[422881645,1779565842000,-504.633568,0.00024658,2]
[422881593,1779565842000,-200.0,0.00023541,2]
[422881626,1779565842000,-200.0,0.00024512,2]
[422881630,1779565842000,-1592.87721992,0.00024637,2]
[422881625,1779565842000,-2749.5,0.00024324,2]
[422881628,1779565842000,-217.15233878,0.00024637,2]
[422881627,1779565842000,-6430.009,0.00024558,2]
[422881635,1779565842000,-151.0,0.00024658,2]
[422881644,1779565842000,-194.908637,0.00024658,2]
[422881643,1779565842000,-151.0,0.00024658,2]
[422881634,1779565842000,-151.0,0.00024658,2]
[422881647,1779565842000,-504.633568,0.00024658,2]
[422881646,1779565842000,-504.633568,0.00024658,2]
[422881636,1779565842000,-151.0,0.00024658,2]
[422881638,1779565842000,-151.0,0.00024658,2]
[422881622,1779565842000,-3756.2125814,0.0002421,2]
[422881637,1779565842000,-151.0,0.00024658,2]
[422881642,1779565842000,-151.0,0.00024658,2]
[422881641,1779565842000,-151.0,0.00024658,2]
[422881648,1779565842000,-504.633568,0.00024658,2]
[422881651,1779565842000,-504.633568,0.00024658,2]
[422881650,1779565842000,-504.633568,0.00024658,2]
[422881649,1779565842000,-504.633568,0.00024658,2]
[422881652,1779565842000,-504.633568,0.00024658,2]
[422881653,1779565842000,-504.633568,0.00024658,2]
[422881654,1779565842000,-504.633568,0.00024658,2]
[422881655,1779565842000,-504.633568,0.00024658,2]
[422881658,1779565842000,-504.633568,0.00024658,2]
[422881657,1779565842000,-504.633568,0.00024658,2]
[422881589,1779565842000,-931.0,0.00023485,2]
[422881640,1779565842000,-151.0,0.00024658,2]
[422881624,1779565842000,-557.28,0.00024222,7]
[422881639,1779565842000,-151.0,0.00024658,2]
[422881629,1779565842000,-200.0,0.00024637,2]
[422881620,1779565842000,-477.67,0.0002411,2]
[422881597,1779565842000,-200.0,0.00023718,2]
[422881596,1779565842000,-2157.14243826,0.00023541,2]
[422881602,1779565842000,-1416.0,0.00024,2]
[422881598,1779565842000,-1038.03538253,0.00024,2]
[422881603,1779565842000,-158.0,0.00024,2]
[422881600,1779565842000,-1255.15927885,0.00024,2]
[422881599,1779565842000,-3600.0,0.00024,2]
[422881605,1779565842000,-2112.0,0.00024,2]
[422881601,1779565842000,-393.0,0.00024,2]
[422881604,1779565842000,-307.0,0.00024,2]
[422881594,1779565842000,-200.0,0.00023541,2]
[422881606,1779565842000,-500.0,0.00024,2]
[422881608,1779565842000,-494.0,0.00024,2]
[422881595,1779565842000,-1481.2378076,0.00023541,2]
[422881615,1779565842000,-200.0,0.00024089,2]
[422881609,1779565842000,-360.5,0.00024004,14]
[422881632,1779565842000,-2319.72410669,0.00024637,2]
[422881631,1779565842000,-200.0,0.00024637,2]
[422881621,1779565842000,-157.24206758,0.00024196,2]
[422881611,1779565842000,-670.58624095,0.00024088,2]
[422881613,1779565842000,-200.0,0.00024089,2]
[422881633,1779565842000,-261.01,0.00024658,8]
[422881617,1779565842000,-1536.04360648,0.00024089,2]
[422881612,1779565842000,-209.40437684,0.00024089,2]
[422881619,1779565842000,-557.28,0.00024101,7]
[422881607,1779565842000,-2370.0,0.00024,2]
[422881610,1779565842000,-599.60298507,0.00024088,2]
[422881618,1779565842000,-2236.95670847,0.00024089,2]
[422881698,1779565843000,-2131.0,0.00025,2]
[422881700,1779565843000,-215.31523495,0.00025,7]
[422881699,1779565843000,-2374.0,0.00025,2]
[422881697,1779565843000,-323.0,0.00025,2]
[422881701,1779565843000,-504.0,0.00025,2]
[422881695,1779565843000,-1425.0,0.00025,2]
[422881692,1779565843000,-3085.95590493,0.00025,2]
[422881694,1779565843000,-399.0,0.00025,2]
[422881693,1779565843000,-200.0,0.00025,14]
[422881703,1779565843000,-159.17631842,0.00025179,21]
[422881690,1779565843000,-1129.55294264,0.00025,2]
[422881704,1779565843000,-414.36512351,0.00025179,21]
[422881696,1779565843000,-177.0,0.00025,2]
[422881716,1779565843000,-165.59967159,0.00025567,2]
[422881712,1779565843000,-904.38225751,0.00025397,2]
[422881707,1779565843000,-200.0,0.00025185,2]
[422881705,1779565843000,-290.55978743,0.00025179,21]
[422881715,1779565843000,-166.10335721,0.00025533,2]
[422881708,1779565843000,-1651.81367706,0.00025185,2]
[422881709,1779565843000,-202.35287585,0.00025185,2]
[422881714,1779565843000,-212.24005293,0.00025397,2]
[422881710,1779565843000,-2405.55389863,0.00025185,2]
[422881713,1779565843000,-432.2227082,0.00025397,2]
[422881711,1779565843000,-200.0,0.00025305,2]
[422881718,1779565843000,-921.0,0.00025637,2]
[422881729,1779565843000,-550.0,0.00026,2]
[422881728,1779565843000,-219.55834854,0.00026,2]
[422881702,1779565843000,-921.0,0.00025082,2]
[422881706,1779565843000,-225.18697532,0.00025185,2]
[422881691,1779565843000,-619.33509621,0.00025,2]
[422881661,1779565843000,-504.633568,0.00024658,2]
[422881689,1779565843000,-215.31523495,0.00025,7]
[422881660,1779565843000,-504.633568,0.00024658,2]
[422881659,1779565843000,-504.633568,0.00024658,2]
[422881663,1779565843000,-504.633568,0.00024658,2]
[422881673,1779565843000,-1000.0,0.00024999,2]
[422881675,1779565843000,-210.40066653,0.00025,2]
[422881674,1779565843000,-1000.0,0.00024999,2]
[422881662,1779565843000,-504.633568,0.00024658,2]
[422881665,1779565843000,-504.633564,0.00024658,2]
[422881664,1779565843000,-504.633568,0.00024658,2]
[422881670,1779565843000,-1000.0,0.00024999,2]
[422881672,1779565843000,-1000.0,0.00024999,2]
[422881666,1779565843000,-937.8,0.00024658,2]
[422881667,1779565843000,-1000.0,0.00024658,2]
[422881684,1779565843000,-169.66468646,0.00025,2]
[422881671,1779565843000,-1000.0,0.00024999,2]
[422881669,1779565843000,-218.76417585,0.000249,2]
[422881678,1779565843000,-540.0,0.00025,2]
[422881683,1779565843000,-2231.27963803,0.00025,2]
[422881687,1779565843000,-53128.58819082,0.00025,2]
[422881680,1779565843000,-10501.47372246,0.00025,2]
[422881676,1779565843000,-1809.93096035,0.00025,2]
[422881681,1779565843000,-7228.55808856,0.00025,2]
[422881682,1779565843000,-168711.43026542,0.00025,7]
[422881679,1779565843000,-7071.2931063,0.00025,21]
[422881677,1779565843000,-1000.0,0.00025,2]
[422881686,1779565843000,-150.0,0.00025,2]
[422881685,1779565843000,-626.89334618,0.00025,5]
[422881688,1779565843000,-958.0,0.00025,5]
[422881668,1779565843000,-12599.37,0.00024878,7]
[422881720,1779565843000,-200.0,0.00025733,2]
[422881717,1779565843000,-1000.0,0.000256,2]
[422881722,1779565843000,-2494.55939288,0.00025733,2]
[422881754,1779565843000,-625.0,0.00026485,2]
[422881759,1779565843000,-200.0,0.00026632,2]
[422881766,1779565843000,-200.0,0.00026739,2]
[422881768,1779565843000,-1991.0,0.00026755,2]
[422881764,1779565843000,-200.0,0.00026723,2]
[422881763,1779565843000,-4866.0,0.000267,7]
[422881761,1779565843000,-200.0,0.00026632,2]
[422881762,1779565843000,-200.0,0.00026636,2]
[422881767,1779565843000,-921.0,0.00026746,3]
[422881765,1779565843000,-200.0,0.00026723,2]
[422881772,1779565843000,-621.78829552,0.00026827,2]
[422881771,1779565843000,-200.0,0.00026802,2]
[422881760,1779565843000,-200.0,0.00026632,2]
[422881749,1779565843000,-212.24005293,0.00026397,2]
[422881769,1779565843000,-239.0,0.00026755,2]
[422881784,1779565843000,-2000.0,0.00027,2]
[422881773,1779565843000,-695.39793187,0.00026827,2]
[422881777,1779565843000,-200.0,0.00026891,2]
[422881775,1779565843000,-200.0,0.00026829,2]
[422881776,1779565843000,-2682.57183977,0.00026829,2]
[422881778,1779565843000,-1000.0,0.00026999,2]
[422881782,1779565843000,-530.0,0.00027,2]
[422881781,1779565843000,-1050.2903339,0.00027,2]
[422881779,1779565843000,-509.383956,0.00027,3]
[422881780,1779565843000,-250.0,0.00027,2]
[422881785,1779565843000,-435.61,0.00027,2]
[422881786,1779565843000,-475.153014,0.00027,60]
[422881719,1779565843000,-233.5188934,0.00025733,2]
[422881774,1779565843000,-251.11897888,0.00026829,2]
[422881753,1779565843000,-3546.0,0.00026485,2]
[422881770,1779565843000,-306.43,0.00026788,2]
[422881750,1779565843000,-345.51012884,0.00026397,2]
[422881751,1779565843000,-27886.07617148,0.000264,2]
[422881726,1779565843000,-609.42437611,0.0002599,2]
[422881725,1779565843000,-306.43699999,0.00025875,2]
[422881724,1779565843000,-215.31523495,0.000258,7]
[422881723,1779565843000,-206.7,0.00025743,2]
[422881727,1779565843000,-4587.35855787,0.00026,2]
[422881730,1779565843000,-150.0,0.00026088,7]
[422881732,1779565843000,-22758.0,0.000261,2]
[422881733,1779565843000,-2277.55384654,0.000261,2]
[422881735,1779565843000,-274.0,0.000261,2]
[422881731,1779565843000,-200.0,0.00026098,2]
[422881734,1779565843000,-2734.0,0.000261,2]
[422881736,1779565843000,-1422.0,0.000261,2]
[422881740,1779565843000,-306.437,0.0002618,2]
[422881742,1779565843000,-242.15909246,0.00026281,2]
[422881721,1779565843000,-1192.45948059,0.00025733,2]
[422881752,1779565843000,-306.437,0.00026484,2]
[422881747,1779565843000,-904.38225751,0.00026397,2]
[422881748,1779565843000,-432.2227082,0.00026397,2]
[422881758,1779565843000,-931.0,0.00026485,2]
[422881738,1779565843000,-2440.18,0.0002611,7]
[422881745,1779565843000,-2749.5,0.00026296,2]
[422881757,1779565843000,-418.0,0.00026485,2]
[422881756,1779565843000,-1271.0,0.00026485,2]
[422881746,1779565843000,-12599.37,0.00026356,7]
[422881743,1779565843000,-200.0,0.00026281,2]
[422881737,1779565843000,-171.0,0.000261,2]
[422881741,1779565843000,-921.0,0.00026192,3]
[422881744,1779565843000,-2586.85809042,0.00026281,2]
[422881755,1779565843000,-927.0,0.00026485,2]
[422881832,1779565844000,-1500.0,0.00027397,2]
[422881826,1779565844000,-500.0,0.00027397,2]
[422881829,1779565844000,-500.0,0.00027397,2]
[422881827,1779565844000,-500.0,0.00027397,2]
[422881824,1779565844000,-500.0,0.00027397,2]
[422881822,1779565844000,-500.0,0.00027397,2]
[422881830,1779565844000,-429.66865391,0.00027397,2]
[422881821,1779565844000,-500.0,0.00027397,2]
[422881825,1779565844000,-500.0,0.00027397,2]
[422881828,1779565844000,-500.0,0.00027397,2]
[422881820,1779565844000,-500.0,0.00027397,2]
[422881843,1779565844000,-714.903553,0.00027397,2]
[422881823,1779565844000,-500.0,0.00027397,2]
[422881835,1779565844000,-527.33,0.00027397,2]
[422881834,1779565844000,-261.01,0.00027397,31]
[422881840,1779565844000,-714.903553,0.00027397,2]
[422881842,1779565844000,-714.903553,0.00027397,2]
[422881833,1779565844000,-1003.01,0.00027397,2]
[422881831,1779565844000,-150.0,0.00027397,2]
[422881839,1779565844000,-300.0,0.00027397,2]
[422881837,1779565844000,-151.0,0.00027397,2]
[422881841,1779565844000,-714.903553,0.00027397,2]
[422881836,1779565844000,-1466.51,0.00027397,2]
[422881838,1779565844000,-248.353747,0.00027397,2]
[422881845,1779565844000,-714.903553,0.00027397,2]
[422881850,1779565844000,-714.903553,0.00027397,2]
[422881846,1779565844000,-714.903553,0.00027397,2]
[422881848,1779565844000,-714.903553,0.00027397,2]
[422881844,1779565844000,-714.903553,0.00027397,2]
[422881819,1779565844000,-500.0,0.00027397,2]
[422881788,1779565844000,-1256.9,0.00027023,2]
[422881812,1779565844000,-288.14847213,0.00027397,7]
[422881790,1779565844000,-1256.9,0.00027025,2]
[422881791,1779565844000,-1256.9,0.00027025,2]
[422881789,1779565844000,-1256.9,0.00027023,2]
[422881787,1779565844000,-2579.134209,0.0002701,2]
[422881792,1779565844000,-1256.9,0.00027025,2]
[422881794,1779565844000,-1256.9,0.00027027,2]
[422881795,1779565844000,-1256.9,0.00027027,2]
[422881796,1779565844000,-306.43,0.00027093,2]
[422881798,1779565844000,-161.20760437,0.000273,30]
[422881799,1779565844000,-921.0,0.00027301,4]
[422881803,1779565844000,-260.4103811,0.00027377,2]
[422881804,1779565844000,-200.0,0.00027377,2]
[422881797,1779565844000,-152.2,0.00027159,2]
[422881793,1779565844000,-1256.93,0.00027027,2]
[422881802,1779565844000,-437.4,0.0002737,2]
[422881800,1779565844000,-157.24206758,0.00027328,2]
[422881801,1779565844000,-450.0,0.0002737,2]
[422881805,1779565844000,-2781.82699784,0.00027377,2]
[422881807,1779565844000,-8246.80995086,0.0002739,2]
[422881817,1779565844000,-500.0,0.00027397,2]
[422881818,1779565844000,-500.0,0.00027397,2]
[422881814,1779565844000,-500.0,0.00027397,2]
[422881808,1779565844000,-4511.32572086,0.0002739,7]
[422881809,1779565844000,-306.43,0.00027397,2]
[422881816,1779565844000,-500.0,0.00027397,2]
[422881810,1779565844000,-306.43,0.00027397,30]
[422881806,1779565844000,-4174.46917451,0.0002739,2]
[422881811,1779565844000,-602.921505,0.00027397,7]
[422881815,1779565844000,-500.0,0.00027397,2]
[422881813,1779565844000,-500.0,0.00027397,2]
[422881851,1779565844000,-714.903553,0.00027397,2]
[422881849,1779565844000,-714.903553,0.00027397,2]
[422881852,1779565844000,-714.903553,0.00027397,2]
[422881883,1779565844000,-151.0,0.00027397,2]
[422881887,1779565844000,-151.0,0.00027397,2]
[422881885,1779565844000,-151.0,0.00027397,2]
[422881886,1779565844000,-151.0,0.00027397,2]
[422881890,1779565844000,-151.0,0.00027397,2]
[422881893,1779565844000,-151.0,0.00027397,2]
[422881891,1779565844000,-151.0,0.00027397,2]
[422881892,1779565844000,-151.0,0.00027397,2]
[422881889,1779565844000,-151.0,0.00027397,2]
[422881888,1779565844000,-151.0,0.00027397,2]
[422881898,1779565844000,-1160.536748,0.00027397,2]
[422881896,1779565844000,-151.0,0.00027397,2]
[422881899,1779565844000,-1160.536748,0.00027397,2]
[422881894,1779565844000,-151.0,0.00027397,2]
[422881900,1779565844000,-1160.536748,0.00027397,2]
[422881907,1779565844000,-1160.536748,0.00027397,2]
[422881901,1779565844000,-1160.536748,0.00027397,2]
[422881906,1779565844000,-1160.536748,0.00027397,2]
[422881904,1779565844000,-1160.536748,0.00027397,2]
[422881902,1779565844000,-1160.536748,0.00027397,2]
[422881905,1779565844000,-1160.536748,0.00027397,2]
[422881908,1779565844000,-1160.536748,0.00027397,2]
[422881903,1779565844000,-1160.536748,0.00027397,2]
[422881910,1779565844000,-1160.536748,0.00027397,2]
[422881909,1779565844000,-1160.536748,0.00027397,2]
[422881913,1779565844000,-1160.536748,0.00027397,2]
[422881912,1779565844000,-1160.536748,0.00027397,2]
[422881911,1779565844000,-1160.536748,0.00027397,2]
[422881897,1779565844000,-154.371713,0.00027397,2]
[422881895,1779565844000,-151.0,0.00027397,2]
[422881914,1779565844000,-1160.536748,0.00027397,2]
[422881878,1779565844000,-151.070447,0.00027397,2]
[422881884,1779565844000,-151.0,0.00027397,2]
[422881853,1779565844000,-714.903553,0.00027397,2]
[422881855,1779565844000,-714.903553,0.00027397,2]
[422881854,1779565844000,-714.903553,0.00027397,2]
[422881857,1779565844000,-714.903553,0.00027397,2]
[422881867,1779565844000,-151.0,0.00027397,2]
[422881868,1779565844000,-151.0,0.00027397,2]
[422881865,1779565844000,-151.0,0.00027397,2]
[422881863,1779565844000,-161.00001,0.00027397,2]
[422881858,1779565844000,-714.903553,0.00027397,2]
[422881861,1779565844000,-151.0,0.00027397,2]
[422881864,1779565844000,-151.0,0.00027397,2]
[422881859,1779565844000,-714.903545,0.00027397,2]
[422881856,1779565844000,-714.903553,0.00027397,2]
[422881862,1779565844000,-151.0,0.00027397,2]
[422881847,1779565844000,-714.903553,0.00027397,2]
[422881866,1779565844000,-151.0,0.00027397,2]
[422881860,1779565844000,-1019.62,0.00027397,2]
[422881873,1779565844000,-151.0,0.00027397,2]
[422881874,1779565844000,-151.0,0.00027397,2]
[422881877,1779565844000,-151.0,0.00027397,2]
[422881879,1779565844000,-151.0,0.00027397,2]
[422881875,1779565844000,-151.0,0.00027397,2]
[422881876,1779565844000,-151.0,0.00027397,2]
[422881882,1779565844000,-151.0,0.00027397,2]
[422881881,1779565844000,-151.0,0.00027397,2]
[422881872,1779565844000,-151.0,0.00027397,2]
[422881871,1779565844000,-151.0,0.00027397,2]
[422881880,1779565844000,-151.0,0.00027397,2]
[422881870,1779565844000,-151.0,0.00027397,2]
[422881869,1779565844000,-151.0,0.00027397,2]
[422881951,1779565845000,-832.301237,0.00027397,2]
[422881960,1779565845000,-832.301237,0.00027397,2]
[422881953,1779565845000,-832.301237,0.00027397,2]
[422881956,1779565845000,-832.301237,0.00027397,2]
[422881958,1779565845000,-832.301237,0.00027397,2]
[422881947,1779565845000,-832.301237,0.00027397,2]
[422881948,1779565845000,-151.0,0.00027397,2]
[422881952,1779565845000,-151.0,0.00027397,2]
[422881946,1779565845000,-151.0,0.00027397,2]
[422881950,1779565845000,-151.0,0.00027397,2]
[422881949,1779565845000,-832.301237,0.00027397,2]
[422881955,1779565845000,-832.301237,0.00027397,2]
[422881970,1779565845000,-864.3316,0.00027397,2]
[422881968,1779565845000,-864.3316,0.00027397,2]
[422881961,1779565845000,-832.301237,0.00027397,2]
[422881971,1779565845000,-864.3316,0.00027397,2]
[422881959,1779565845000,-832.301237,0.00027397,2]
[422881963,1779565845000,-832.301237,0.00027397,2]
[422881954,1779565845000,-163.448953,0.00027397,2]
[422881964,1779565845000,-832.301237,0.00027397,2]
[422881965,1779565845000,-832.301237,0.00027397,2]
[422881966,1779565845000,-832.30123297,0.00027397,2]
[422881967,1779565845000,-864.3316,0.00027397,2]
[422881969,1779565845000,-864.3316,0.00027397,2]
[422881972,1779565845000,-864.3316,0.00027397,2]
[422881974,1779565845000,-864.3316,0.00027397,2]
[422881973,1779565845000,-864.3316,0.00027397,2]
[422881975,1779565845000,-864.3316,0.00027397,2]
[422881962,1779565845000,-832.301237,0.00027397,2]
[422881957,1779565845000,-832.301237,0.00027397,2]
[422881937,1779565845000,-583.513332,0.00027397,2]
[422881942,1779565845000,-151.0,0.00027397,2]
[422881985,1779565845000,-864.3316,0.00027397,2]
[422881920,1779565845000,-583.513339,0.00027397,2]
[422881916,1779565845000,-1160.536748,0.00027397,2]
[422881919,1779565845000,-583.513339,0.00027397,2]
[422881918,1779565845000,-583.513339,0.00027397,2]
[422881917,1779565845000,-1160.536755,0.00027397,2]
[422881915,1779565845000,-1160.536748,0.00027397,2]
[422881921,1779565845000,-583.513339,0.00027397,2]
[422881924,1779565845000,-583.513339,0.00027397,2]
[422881931,1779565845000,-583.513339,0.00027397,2]
[422881923,1779565845000,-583.513339,0.00027397,2]
[422881929,1779565845000,-583.513339,0.00027397,2]
[422881922,1779565845000,-583.513339,0.00027397,2]
[422881945,1779565845000,-832.301237,0.00027397,2]
[422881927,1779565845000,-583.513339,0.00027397,2]
[422881930,1779565845000,-583.513339,0.00027397,2]
[422881926,1779565845000,-583.513339,0.00027397,2]
[422881933,1779565845000,-583.513339,0.00027397,2]
[422881943,1779565845000,-832.301237,0.00027397,2]
[422881932,1779565845000,-583.513339,0.00027397,2]
[422881938,1779565845000,-937.8,0.00027397,2]
[422881944,1779565845000,-151.0,0.00027397,2]
[422881935,1779565845000,-583.513339,0.00027397,2]
[422881934,1779565845000,-583.513339,0.00027397,2]
[422881936,1779565845000,-583.513339,0.00027397,2]
[422881940,1779565845000,-832.301237,0.00027397,2]
[422881939,1779565845000,-1000.0,0.00027397,20]
[422881941,1779565845000,-832.301237,0.00027397,2]
[422881925,1779565845000,-583.513339,0.00027397,2]
[422881928,1779565845000,-583.513339,0.00027397,2]
[422881984,1779565845000,-864.3316,0.00027397,2]
[422881983,1779565845000,-864.3316,0.00027397,2]